bitfinex-derivatives/quotes_SOLF0:USTF0_20250206
["timestamp","ask_amount","ask_price","bid_price","bid_amount"]
[1738859666756,31.09332023,190.7,190.43,193.0]
[1738859666958,5.2445,190.63,190.5,2.7309]
[1738859667258,0.03817712,190.63,190.59,0.0359883]
[1738859670856,0.03817712,190.63,190.62,5.2447]
[1738859671259,2.9595,190.77,190.62,31.09332023]
[1738859671459,2.9595,190.77,190.65,31.09332023]
[1738859672059,5.2417,190.73,190.65,31.09332023]
[1738859672258,2.9595,190.77,190.64,1.8316]
[1738859672459,0.03575525,190.71,190.67,5.27799615]
[1738859672660,0.03575525,190.71,190.67,0.03489615]
[1738859673061,0.03575525,190.71,190.69,5.2427]
[1738859673261,0.03575525,190.71,190.67,0.03489615]
[1738859674359,0.03575525,190.71,190.55,3.6134]
[1738859674559,31.09332023,190.7,190.55,1.7545]
[1738859674756,31.09332023,190.67,190.5,1.8589]
[1738859674966,4.651,190.66,190.5,1.8589]
[1738859675167,4.651,190.66,190.52,31.09332023]
[1738859675359,4.651,190.66,190.55,31.09332023]
[1738859675561,0.03669017,190.61,190.57,0.03525636]
[1738859675962,0.03669017,190.61,190.6,5.2452]
[1738859676166,7.5283,190.72,190.6,5.2452]
[1738859676474,7.5283,190.72,190.61,31.09332023]
[1738859676678,1.8167,190.76,190.64,31.09332023]
[1738859677467,1.8167,190.76,190.68,0.03659566]
[1738859677468,0.03396123,190.72,190.68,0.03659566]
[1738859677678,0.03396123,190.72,190.69,5.2427]
[1738859678172,0.03396123,190.72,190.68,0.03659566]
[1738859678772,0.03396123,190.72,190.68,5.27959566]
[1738859679074,0.03396123,190.72,190.68,0.03659566]
[1738859679472,4.4028,190.86,190.71,31.09332023]
[1738859680074,35.49612023,190.86,190.71,31.09332023]
[1738859680476,35.49612023,190.86,190.73,5.2414]
[1738859680666,35.49612023,190.86,190.77,0.03651105]
[1738859680868,0.95375429,190.85,190.77,0.03651105]
[1738859681071,1.775,190.88,190.77,0.03651105]
[1738859681874,4.4173,190.94,190.83,31.09332023]
[1738859682081,5.2365,190.92,190.86,5.2381]
[1738859682379,4.4173,190.94,190.87,0.0359716]
[1738859682681,4.4173,190.94,190.84,5.2384]
[1738859682871,4.4173,190.94,190.89,0.03450326]
[1738859683076,5.2363,190.93,190.89,0.03450326]
[1738859683273,4.4173,190.94,190.89,0.03450326]
[1738859684077,5.2368,190.91,190.89,0.03450326]
[1738859684279,35.51062023,190.94,190.89,0.03450326]
[1738859684576,5.2363,190.93,190.89,0.03450326]
[1738859684879,4.4173,190.94,190.89,0.03450326]
[1738859686173,31.09332023,190.93,190.77,31.09332023]
[1738859686372,5.2379,190.87,190.77,31.09332023]
[1738859686570,31.09332023,190.93,190.81,5.2392]
[1738859686776,31.09332023,190.9,190.75,1.7644]
[1738859686978,31.09332023,190.9,190.79,5.2398]
[1738859687378,0.03328047,190.86,190.83,0.03723008]
[1738859688082,0.03328047,190.86,190.71,33.76352023]
[1738859688277,31.09332023,190.84,190.71,2.6702]
[1738859688472,31.09332023,190.84,190.69,28.57753852]
[1738859688677,2.7124,190.83,190.69,28.57753852]
[1738859689176,5.2414,190.74,190.69,28.57753852]
[1738859689381,31.12815031,190.78,190.74,0.03663663]
[1738859689682,31.12815031,190.78,190.69,28.57753852]
[1738859689683,31.09332023,190.78,190.69,28.57753852]
[1738859690776,0.03895039,190.75,190.72,0.03611269]
[1738859690971,5.2422,190.71,190.69,28.57753852]
[1738859691171,31.13227062,190.75,190.69,25.87583852]
[1738859691372,1.7681,190.74,190.69,25.87583852]
[1738859691775,5.2425,190.7,190.63,5.2444]
[1738859691978,1.7681,190.74,190.59,31.09332023]
[1738859692187,0.03747932,190.66,190.65,0.03635774]
[1738859692373,5.28107932,190.66,190.65,0.03635774]
[1738859692575,31.09332023,190.72,190.53,73.22184477]
[1738859692780,5.244,190.65,190.59,5.2454]
[1738859692979,0.03378465,190.67,190.59,5.2454]
[1738859693676,0.03378465,190.67,190.55,5.2464]
[1738859693878,31.09332023,190.66,190.61,0.03925832]
[1738859694078,31.09332023,190.63,190.53,42.12852454]
[1738859694881,31.09332023,190.67,190.53,31.09332023]
[1738859695082,4.6,190.68,190.53,31.09332023]
[1738859695279,0.03785422,190.62,190.58,0.03557405]
[1738859695978,31.09332023,190.61,190.47,31.09332023]
[1738859696183,31.09332023,190.58,190.44,21.35673711]
[1738859696480,35.69332023,190.58,190.44,21.35673711]
[1738859696984,31.09332023,190.55,190.44,21.35673711]
[1738859697376,0.03751821,190.53,190.49,0.03447179]
[1738859697575,0.03751821,190.53,190.44,21.35673711]
[1738859697576,31.09332023,190.52,190.44,21.35673711]
[1738859697775,5.2487,190.48,190.44,21.35673711]
[1738859697980,31.09332023,190.52,190.44,21.35673711]
[1738859698183,32.74202023,190.52,190.44,21.35673711]
[1738859698683,32.74202023,190.52,190.35,32.87292023]
[1738859698879,0.03363655,190.5,190.46,0.03460706]
[1738859699083,32.74202023,190.52,190.35,32.87292023]
[1738859699284,0.03855595,190.5,190.46,0.0388111]
[1738859699683,1.6487,190.52,190.44,5.2496]
[1738859699883,0.03585581,190.5,190.46,0.03374236]
[1738859700681,5.28385581,190.5,190.46,0.03374236]
[1738859700883,0.03585581,190.5,190.46,0.03374236]
[1738859701384,31.09332023,190.49,190.35,1.7796]
[1738859701581,31.09332023,190.43,190.26,31.09332023]
[1738859701787,5.2524,190.35,190.29,5.2538]
[1738859701978,31.09332023,190.4,190.29,5.2538]
[1738859702182,4.6,190.46,190.32,31.09332023]
[1738859702485,31.09332023,190.45,190.29,31.09332023]
[1738859702680,4.6,190.46,190.37,0.03854086]
[1738859702681,0.03982144,190.41,190.37,0.03854086]
[1738859702882,1.75172144,190.41,190.37,0.03854086]
[1738859703079,5.2521,190.35,190.28,5.2538]
[1738859703279,1.75225153,190.41,190.37,0.03524312]
[1738859703690,1.7119,190.41,190.26,31.09332023]
[1738859703889,1.74885793,190.41,190.37,0.03669308]
[1738859704183,1.6671,190.47,190.32,31.09332023]
[1738859704378,0.03496643,190.41,190.37,0.03518819]
[1738859705881,5.2528,190.33,190.27,7.0547]
[1738859706089,31.09332023,190.37,190.27,1.8004]
[1738859706482,31.09332023,190.37,190.29,5.2537]
[1738859706483,5.2522,190.35,190.29,5.2537]
[1738859706693,6.328,190.39,190.27,1.8004]
[1738859706984,31.09332023,190.43,190.27,1.8004]
[1738859707485,0.03558871,190.35,190.31,0.03614972]
[1738859707991,0.03837364,190.35,190.31,0.03820106]
[1738859709892,5.2529,190.32,190.31,0.03820106]
[1738859710790,5.2526,190.34,190.31,0.03820106]
[1738859710994,0.03837364,190.35,190.31,0.03820106]
[1738859711390,5.2529,190.32,190.31,0.03820106]
[1738859712689,5.2526,190.34,190.31,0.03820106]
[1738859713190,0.03837364,190.35,190.31,0.03820106]
[1738859714984,4.6,190.45,190.32,31.09332023]
[1738859715292,1.6762,190.47,190.32,31.09332023]
[1738859715483,32.76952023,190.47,190.34,5.2523]
[1738859715684,32.76952023,190.47,190.3,1.6932]
[1738859715893,1.6762,190.47,190.32,31.09332023]
[1738859716190,31.09332023,190.5,190.38,0.03779611]
[1738859716488,0.03905711,190.41,190.38,0.03779611]
[1738859716696,3.373,190.52,190.38,31.09332023]
[1738859716889,8.835e-05,190.41,190.39,4.5373]
[1738859717091,8.835e-05,190.41,190.4,5.2507]
[1738859717292,2.6685,190.53,190.39,4.5373]
[1738859717488,3.373,190.58,190.41,31.09332023]
[1738859717692,31.09332023,190.62,190.44,31.09332023]
[1738859717894,5.2456,190.59,190.47,31.09332023]
[1738859718096,4.6,190.63,190.5,31.09332023]
[1738859718298,2.85,190.66,190.53,31.09332023]
[1738859718490,2.85,190.66,190.58,5.2458]
[1738859718691,35.69332023,190.71,190.53,31.09332023]
[1738859718896,5.2435,190.67,190.59,5.2455]
[1738859719089,5.2435,190.67,190.53,31.09332023]
[1738859719295,35.69332023,190.71,190.53,31.09332023]
[1738859719492,31.09332023,190.68,190.51,2.8714]
[1738859719698,31.13027664,190.62,190.58,0.03388513]
[1738859720089,0.03695641,190.62,190.58,0.03388513]
[1738859720294,31.09332023,190.59,190.48,1.7208]
[1738859720693,36.33902023,190.59,190.48,1.7208]
[1738859720900,6.3735,190.61,190.48,1.7208]
[1738859721199,31.09332023,190.59,190.48,1.7208]
[1738859721389,31.09332023,190.56,190.48,1.7208]
[1738859721590,0.03799463,190.55,190.52,0.03794229]
[1738859721790,5.2472,190.53,190.52,0.03794229]
[1738859721998,0.03799463,190.55,190.43,5.9938]
[1738859722297,0.03799463,190.55,190.43,1.6209]
[1738859722493,31.09332023,190.59,190.43,1.6209]
[1738859722693,31.09332023,190.59,190.43,32.71422023]
[1738859722694,0.95494337,190.58,190.43,32.71422023]
[1738859722898,4.2579,190.6,190.46,31.09332023]
[1738859723597,0.03510879,190.55,190.51,0.04003078]
[1738859724099,193.0,190.76,190.52,31.09332023]
[1738859724100,5.2438,190.66,190.52,31.09332023]
[1738859724293,35.42512023,190.71,190.55,31.09332023]
[1738859724501,4.3318,190.71,190.58,31.09332023]
[1738859724701,5.2423,190.71,190.63,5.2444]
[1738859724999,1.7396,190.76,190.58,31.09332023]
[1738859725293,1.7396,190.76,190.67,5.2432]
[1738859725602,0.03978008,190.69,190.65,0.03787282]
[1738859725992,0.03978008,190.69,190.62,3.5175]
[1738859725993,1.7396,190.76,190.62,3.5175]
[1738859726191,5.27707054,190.69,190.65,0.03886255]
[1738859726397,0.03427054,190.69,190.65,0.03886255]
[1738859728197,5.2436,190.66,190.65,0.03886255]
[1738859728398,0.03427054,190.69,190.65,0.03886255]
[1738859728593,5.2431,190.68,190.65,0.03886255]
[1738859728798,0.03427054,190.69,190.65,0.03886255]
[1738859729295,31.09332023,190.83,190.67,31.09332023]
[1738859729497,0.95556938,190.82,190.67,31.09332023]
[1738859729699,5.2403,190.78,190.72,5.2417]
[1738859729897,5.2403,190.78,190.67,31.09332023]
[1738859730301,9.1627,190.85,190.74,5.2414]
[1738859730302,5.2398,190.8,190.74,5.2414]
[1738859730601,0.03564591,190.74,190.71,0.03931413]
[1738859730804,5.24,190.8,190.74,5.2413]
[1738859731502,0.0346032,190.79,190.77,5.2405]
[1738859731703,4.6,190.9,190.74,4.3924]
[1738859732000,5.2389,190.84,190.79,5.24]
[1738859732205,4.6,190.9,190.76,31.09332023]
[1738859732502,5.2385,190.85,190.78,5.2403]
[1738859732703,31.09332023,190.86,190.74,4.3924]
[1738859732901,0.03555144,190.83,190.8,0.03940802]
[1738859733200,0.03555144,190.83,190.67,31.09332023]
[1738859733500,62.18664046,190.7,190.52,21.35673711]
[1738859733701,31.09332023,190.6,190.53,1.04970345]
[1738859733900,31.09332023,190.6,190.52,21.35673711]
[1738859734199,5.2469,190.54,190.52,21.35673711]
[1738859734902,5.2463,190.56,190.52,21.35673711]
[1738859735501,5.2467,190.55,190.52,21.35673711]
[1738859735704,0.03953984,190.58,190.52,21.35673711]
[1738859735705,31.09332023,190.57,190.52,21.35673711]
[1738859736006,31.09332023,190.57,190.51,57.53152544]
[1738859736007,5.2467,190.55,190.51,0.03760691]
[1738859736207,0.03953984,190.58,190.51,0.03760691]
[1738859737007,31.09332023,190.57,190.51,0.03760691]
[1738859738008,5.2472,190.53,190.51,0.03760691]
[1738859738997,0.03418075,190.54,190.51,0.03760691]
[1738859739399,5.2474,190.52,190.51,0.03760691]
[1738859741309,5.28118075,190.54,190.51,0.03760691]
[1738859741511,0.03418075,190.54,190.51,0.03760691]
[1738859742707,0.03418075,190.54,190.44,1.7593]
[1738859742708,62.18664046,190.52,190.37,6.1685]
[1738859742912,5.2513,190.38,190.37,6.1685]
[1738859743109,5.2513,190.38,190.37,1.6303]
[1738859743308,5.2507,190.4,190.37,1.6303]
[1738859743606,31.09332023,190.4,190.32,190.0]
[1738859743909,31.13202572,190.4,190.37,0.03462305]
[1738859744510,5.2514,190.38,190.37,0.03462305]
[1738859744808,62.22534595,190.4,190.32,190.0]
[1738859745008,31.09332023,190.33,190.32,170.3251532]
[1738859745206,36.34602023,190.33,190.32,170.3251532]
[1738859745405,31.09332023,190.33,190.15,6.2089]
[1738859745811,5.2541,190.28,190.19,5.2563]
[1738859746011,0.0384894,190.26,190.22,0.03553942]
[1738859747908,5.2552,190.24,190.22,0.03553942]
[1738859748808,5.2932894,190.26,190.22,0.03553942]
[1738859749010,0.0384894,190.26,190.22,0.03553942]
[1738859749807,5.2554,190.23,190.22,0.03553942]
[1738859750008,5.2554,190.23,190.22,3.942e-05]
[1738859750315,5.2576,190.16,190.13,38.0]
[1738859750510,31.09332023,190.18,190.13,38.0]
[1738859750907,5.2579,190.14,190.13,38.0]
[1738859751411,35.73121377,190.15,189.96,38.0]
[1738859751715,31.09332023,190.18,189.96,38.0]
[1738859751716,31.09332023,190.09,189.96,38.0]
[1738859751910,31.09332023,190.09,190.02,5.2612]
[1738859752108,36.35262023,190.09,189.96,38.0]
[1738859752413,31.09332023,190.0,189.96,38.0]
[1738859752612,5.2625,189.98,189.96,38.0]
[1738859752816,5.2625,189.98,189.96,38.03501915]
[1738859753306,0.03524403,189.99,189.96,38.03501915]
[1738859756016,5.29734403,189.99,189.96,38.03501915]
[1738859756217,0.03524403,189.99,189.96,38.03501915]
[1738859757723,5.2624,189.98,189.96,38.03501915]
[1738859758023,0.03524403,189.99,189.96,38.03501915]
[1738859758220,5.2626,189.97,189.96,38.03501915]
[1738859758922,5.29754403,189.99,189.96,38.03501915]
[1738859759122,0.03524403,189.99,189.96,38.03501915]
[1738859760520,0.03524403,189.99,189.96,69.12833938]
[1738859760725,31.09332023,190.12,189.97,1.6259]
[1738859760920,5.2596,190.09,189.97,1.6259]
[1738859761223,31.09332023,190.12,190.01,5.2614]
[1738859761423,1.7393,190.13,189.99,31.09332023]
[1738859761723,32.04356331,190.12,189.97,3.3025]
[1738859761924,0.03981392,190.08,190.04,0.03597199]
[1738859762124,31.09332023,190.06,189.96,38.0]
[1738859762319,31.09332023,190.03,189.96,38.0]
[1738859763134,35.69332023,190.06,189.96,38.0]
[1738859763634,5.2621,189.99,189.98,0.03803848]
[1738859767033,0.03401574,190.01,189.98,0.03803848]
[1738859767431,5.2618,190.0,189.98,0.03803848]
[1738859767736,0.03401574,190.01,189.98,0.03803848]
[1738859769232,0.03401574,190.01,189.98,5.30033848]
[1738859769431,0.03401574,190.01,189.98,0.03803848]
[1738859769825,5.2596,190.08,190.03,5.2607]
[1738859770032,4.3728,190.12,190.03,5.2607]
[1738859770229,1.7367,190.12,190.03,5.2607]
[1738859770431,1.7367,190.12,190.01,5.2615]
[1738859770633,1.7367,190.12,189.98,38.0]
[1738859770634,31.09332023,190.09,189.98,38.0]
[1738859770833,5.2617,190.01,189.98,38.0]
[1738859771037,0.03708754,190.05,190.02,0.03499552]
[1738859771239,31.09332023,190.03,189.98,38.0]
[1738859771636,36.35432023,190.03,190.02,0.03987839]
[1738859773036,5.261,190.03,190.02,0.03987839]
[1738859773334,0.03708754,190.05,190.02,0.03987839]
[1738859773535,0.03708754,190.05,189.98,38.0]
[1738859773536,31.09332023,190.03,189.98,38.0]
[1738859773937,5.2621,189.99,189.98,38.0]
[1738859777147,5.2621,189.99,189.98,30.0587]
[1738859777651,5.2621,189.99,189.98,17.1834]
[1738859778344,0.03375616,190.0,189.98,17.1834]
[1738859779650,0.03375616,190.0,189.98,12.1834]
[1738859779845,35.44502023,190.09,189.98,12.1834]
[1738859780348,5.261,190.03,189.98,12.1834]
[1738859780545,35.44502023,190.09,189.99,5.262]
[1738859780849,5.2601,190.06,189.98,12.1834]
[1738859781148,0.03688921,190.06,190.02,0.03965061]
[1738859781643,0.9496469,190.14,190.02,12.22305061]
[1738859781844,5.2582,190.13,190.02,43.31637084]
[1738859782052,1.6522,190.17,190.02,43.27672023]
[1738859782252,31.09332023,190.21,190.05,31.09332023]
[1738859782453,38.36662023,190.24,190.05,43.27672023]
[1738859782648,0.95029482,190.23,190.08,31.09332023]
[1738859782848,0.03374052,190.16,190.13,0.03725769]
[1738859783048,1.6522,190.27,190.13,12.22065769]
[1738859783348,4.6,190.28,190.14,31.09332023]
[1738859783544,31.09332023,190.21,190.14,12.1834]
[1738859783943,31.09332023,190.18,190.14,12.1834]
[1738859784143,31.09332023,190.18,190.16,0.03889119]
[1738859784549,5.2571,190.17,190.16,0.03889119]
[1738859784750,0.03768802,190.19,190.16,0.03889119]
[1738859786449,35.43252023,190.3,190.16,12.22229119]
[1738859786650,31.09332023,190.36,190.21,31.09332023]
[1738859786855,0.94996081,190.35,190.21,43.27672023]
[1738859787047,0.94996081,190.38,190.24,31.09332023]
[1738859787254,25.25949559,190.4,190.24,43.27672023]
[1738859787455,5.2518,190.37,190.3,5.2535]
[1738859787652,0.03957527,190.34,190.3,12.221824]
[1738859787850,21.02489559,190.4,190.3,12.221824]
[1738859788051,31.09332023,190.39,190.3,12.221824]
[1738859788249,21.02489559,190.41,190.3,12.221824]
[1738859788457,31.09332023,190.39,190.3,12.221824]
[1738859788755,31.09332023,190.33,190.17,2.6388]
[1738859788961,31.09332023,190.25,190.17,2.6388]
[1738859789256,31.09332023,190.22,190.13,14.7093]
[1738859789456,31.09332023,190.19,190.13,13.0]
[1738859789658,5.2576,190.16,190.13,13.0]
[1738859790165,5.29418322,190.16,190.13,13.03902345]
[1738859790361,31.12990345,190.16,190.13,13.03902345]
[1738859790564,5.2579,190.14,190.13,13.03902345]
[1738859791564,31.12990345,190.16,190.03,4.4158]
[1738859791758,31.09332023,190.11,190.03,2.7065]
[1738859791956,31.09332023,190.08,190.03,2.7065]
[1738859792463,5.2601,190.07,190.03,2.7065]
[1738859792661,31.09332023,190.08,189.98,1.7215]
[1738859792862,31.09332023,190.08,189.98,4.3187]
[1738859793058,0.03535638,190.07,190.03,0.03689383]
[1738859793762,31.09332023,190.14,190.03,0.03689383]
[1738859794063,31.09332023,190.14,189.99,1.74]
[1738859794463,31.09332023,190.11,189.99,1.74]
[1738859794662,5.2596,190.08,190.01,5.2614]
[1738859794857,31.09332023,190.14,189.99,1.74]
[1738859795064,0.0362877,190.06,190.03,0.03354544]
[1738859795265,31.09332023,190.17,190.03,0.03354544]
[1738859795461,31.09332023,190.14,189.99,1.74]
[1738859795667,6.3761,190.19,189.99,1.74]
[1738859795668,31.09332023,190.11,189.99,1.74]
[1738859795968,5.2599,190.07,190.0,5.2616]
[1738859796265,31.09332023,190.11,190.0,5.2616]
[1738859796463,31.09332023,190.11,190.02,0.03583795]
[1738859796667,5.30060908,190.05,190.02,0.03583795]
[1738859796866,0.04020908,190.05,190.02,0.03583795]
[1738859797064,31.09332023,190.05,189.99,1.74]
[1738859797264,5.2607,190.04,190.02,0.03921636]
[1738859797469,31.12729526,190.05,190.02,0.03921636]
[1738859798272,0.03397503,190.05,190.02,0.03921636]
[1738859798463,31.09332023,190.14,190.02,0.03921636]
[1738859798866,31.09332023,190.11,189.99,7.0021]
[1738859799064,31.09332023,190.08,189.99,1.74]
[1738859799770,0.03426474,190.05,190.02,0.04040396]
[1738859799968,31.09332023,190.14,190.02,0.04040396]
[1738859800169,31.09332023,190.14,189.99,1.74]
[1738859800365,31.09332023,190.11,189.99,1.74]
[1738859800967,31.09332023,190.11,190.0,5.2617]
[1738859801269,0.03638804,190.07,190.03,0.03443732]
[1738859801471,5.2607,190.04,190.03,0.03443732]
[1738859802869,31.09332023,190.05,189.91,4.2569]
[1738859803077,31.09332023,190.0,189.91,2.6282]
[1738859803276,5.2633,189.95,189.91,2.6282]
[1738859803473,31.09332023,190.03,189.92,5.2638]
[1738859803875,1.6353,190.07,189.91,2.6282]
[1738859804169,0.0360668,189.99,189.96,0.03897817]
[1738859804567,31.09332023,190.04,189.96,0.03897817]
[1738859804769,0.03948589,189.99,189.96,0.03897817]
[1738859804974,1.6353,190.07,189.96,0.03897817]
[1738859805177,1.6353,190.07,189.99,5.2621]
[1738859805574,1.6353,190.07,189.93,31.09332023]
[1738859805775,2.6447,190.1,189.93,31.09332023]
[1738859806175,5.29449284,190.03,190.0,0.03536695]
[1738859806477,0.03349284,190.03,190.0,0.03536695]
[1738859806679,31.09332023,190.11,190.0,0.03536695]
[1738859806879,0.03537607,190.03,190.01,5.2615]
[1738859807070,2.7568,190.18,189.97,1.578]
[1738859807279,5.2602,190.06,190.0,5.29519781]
[1738859807574,31.09332023,190.08,189.91,2.6282]
[1738859807778,31.09332023,190.05,189.93,5.2637]
[1738859807979,31.09332023,190.05,189.91,4.3292]
[1738859808172,31.09332023,190.02,189.91,4.3292]
[1738859808371,0.03691425,190.0,189.96,0.0339572]
[1738859810281,5.2603,190.06,190.01,5.2614]
[1738859810678,33.81482023,190.11,189.93,31.09332023]
[1738859810873,31.09332023,190.14,189.96,31.09332023]
[1738859811073,5.2594,190.09,189.96,31.09332023]
[1738859811580,0.03607556,190.04,190.01,0.03416447]
[1738859811778,5.2597,190.08,190.01,0.03416447]
[1738859811972,5.2597,190.08,189.96,31.09332023]
[1738859812173,31.09332023,190.14,189.99,31.09332023]
[1738859812377,33.81482023,190.17,190.02,31.09332023]
[1738859812580,1.7471,190.18,190.1,5.2588]
[1738859812772,1.7471,190.18,190.03,4.3658]
[1738859812978,5.2579,190.14,190.12,0.03779975]
[1738859813279,0.03417257,190.16,190.12,0.03779975]
[1738859813578,5.29157257,190.16,190.12,0.03779975]
[1738859813775,0.03417257,190.16,190.12,5.29629975]
[1738859813974,0.03417257,190.16,190.12,0.03779975]
[1738859814571,5.2577,190.15,190.12,0.03779975]
[1738859814775,0.03417257,190.16,190.12,0.03779975]
[1738859816181,0.95230155,190.25,190.14,31.09332023]
[1738859816479,33.71282023,190.29,190.06,4.6]
[1738859816480,5.2538,190.29,190.24,5.2551]
[1738859816781,21.02489559,190.32,190.17,31.09332023]
[1738859816979,5.2546,190.26,190.21,5.2558]
[1738859817175,52.11821582,190.32,190.17,31.09332023]
[1738859817473,52.11821582,190.32,190.22,0.03420142]
[1738859817677,31.09332023,190.26,190.22,0.03420142]
[1738859817976,21.02489559,190.32,189.99,10.5237]
[1738859817977,31.09332023,190.23,190.05,31.09332023]
[1738859818185,1.6162,190.25,190.1,31.09332023]
[1738859818582,5.2555,190.23,190.17,5.2571]
[1738859818781,1.6162,190.25,190.13,31.09332023]
[1738859819287,1.6162,190.25,190.18,5.2568]
[1738859819288,0.03545567,190.2,190.18,5.2568]
[1738859819983,0.03545567,190.2,190.16,5.2942341]
[1738859820191,0.03545567,190.2,190.16,0.0370341]
[1738859820392,31.1287759,190.2,190.16,0.0370341]
[1738859820586,5.2571,190.17,190.16,0.0370341]
[1738859820890,36.35042023,190.17,190.16,0.0370341]
[1738859821089,31.09332023,190.17,190.06,2.7224]
[1738859821281,31.09332023,190.14,189.98,3.3863]
[1738859821483,31.09332023,190.11,190.0,2.5233]
[1738859821688,31.09332023,190.08,190.0,2.5233]
[1738859821984,31.09332023,190.08,189.98,1.6803]
[1738859822191,0.3541,190.17,190.02,0.03734756]
[1738859822192,0.03941971,190.06,190.02,0.03734756]
[1738859822386,31.09332023,190.11,189.98,1.6803]
[1738859822586,31.09332023,190.08,190.02,0.03322772]
[1738859822783,0.0382798,190.06,190.02,0.03322772]
[1738859823091,0.03785166,190.06,190.02,0.03540237]
[1738859823395,4.6,190.18,190.02,31.1287226]
[1738859823786,4.6,190.18,190.02,31.09332023]
[1738859823985,31.09332023,190.23,190.08,31.09332023]
[1738859824185,35.69332023,190.26,190.09,4.5304]
[1738859824386,0.03898312,190.17,190.14,0.03741963]
[1738859824588,4.6,190.26,190.11,31.09332023]
[1738859825088,35.69332023,190.26,190.11,31.09332023]
[1738859825487,5.2569,190.18,190.09,4.5304]
[1738859825791,31.09332023,190.23,190.17,0.04021256]
[1738859825990,31.09332023,190.23,190.09,4.5304]
[1738859826193,1.6738,190.22,190.09,4.5304]
[1738859826388,1.6738,190.22,190.14,0.04006171]
[1738859826693,4.6,190.26,190.14,0.04006171]
[1738859827093,4.6,190.26,190.11,31.09332023]
[1738859827287,5.2552,190.24,190.18,0.03884447]
[1738859827493,35.69332023,190.26,190.18,0.03884447]
[1738859827791,5.2559,190.22,190.18,0.03884447]
[1738859828093,2.7608,190.28,190.18,0.03884447]
[1738859828291,1.6738,190.29,190.18,0.03884447]
[1738859829489,5.2565,190.19,190.18,0.03884447]
[1738859830487,31.09332023,190.2,190.1,5.259]
[1738859830688,31.09332023,190.2,190.09,2.7923]
[1738859830885,31.09332023,190.2,190.04,1.7156]
[1738859831090,5.2582,190.14,190.04,4.2462]
[1738859831393,31.09332023,190.2,190.07,5.2599]
[1738859831589,5.2582,190.14,190.07,5.2599]
[1738859831789,5.2582,190.14,190.12,0.03899893]
[1738859832291,5.2582,190.13,190.12,0.03899893]
[1738859833790,0.03338507,190.15,190.12,0.03899893]
[1738859834997,0.03338507,190.15,190.14,5.2579]
[1738859835196,0.03338507,190.15,190.12,0.03899893]
[1738859836004,83.1920225,190.34,190.14,31.09332023]
[1738859836005,1.7222,190.28,190.14,31.09332023]
[1738859836204,1.7222,190.28,190.15,2.7521]
[1738859836396,31.09332023,190.26,190.15,2.7521]
[1738859836594,1.7222,190.28,190.15,2.7521]
[1738859836900,1.7222,190.28,190.17,31.09332023]
[1738859837099,5.2554,190.24,190.2,0.04001037]
[1738859837301,1.7222,190.28,190.2,0.04001037]
[1738859838097,31.09332023,190.26,190.2,0.04001037]
[1738859838298,5.256,190.21,190.2,0.04001037]
[1738859838503,1.7222,190.28,190.2,0.04001037]
[1738859839902,2.6037,190.31,190.2,0.04001037]
[1738859840201,5.2541,190.28,190.22,5.2554]
[1738859840503,31.09332023,190.38,190.21,31.09332023]
[1738859840707,31.09332023,190.38,190.24,31.09332023]
[1738859840895,5.2532,190.31,190.24,31.09332023]
[1738859841099,31.09332023,190.38,190.29,0.03459536]
[1738859841400,1.5831,190.39,190.24,31.09332023]
[1738859841600,1.5831,190.39,190.32,0.03460543]
[1738859842003,5.2527,190.33,190.32,0.03460543]
[1738859842704,31.09332023,190.38,190.32,0.03460543]
[1738859842903,1.5831,190.39,190.32,0.03460543]
[1738859843398,55.22351997,190.44,190.32,0.03460543]
[1738859843599,55.22351997,190.44,190.33,31.09332023]
[1738859843904,55.22351997,190.44,190.36,31.09332023]
[1738859844104,55.22351997,190.44,190.36,31.12789609]
[1738859844300,31.09332023,190.47,190.36,0.03457586]
[1738859844503,0.95858803,190.46,190.36,0.03457586]
[1738859844702,2.5835,190.46,190.36,0.03457586]
[1738859845103,21.02489559,190.49,190.36,31.12789609]
[1738859845499,21.02489559,190.49,190.42,31.09332023]
[1738859845704,21.02489559,190.49,190.45,31.09332023]
[1738859846105,21.02489559,190.49,190.48,5.2485]
[1738859846409,55.22351997,190.5,190.48,31.09332023]
[1738859846609,46.96251556,190.5,190.48,31.09332023]
[1738859846810,46.96251556,190.5,190.49,5.2483]
[1738859847012,35.80042023,190.59,190.45,31.13070058]
[1738859847209,5.2474,190.53,190.45,36.38010058]
[1738859847409,4.7071,190.59,190.45,31.09332023]